bitfinex-derivatives/quotes_ETHF0:USTF0_20260123
["timestamp","ask_amount","ask_price","bid_price","bid_amount"]
[1769152029250,0.1414085,2939.5,2938.1,2.44]
[1769152030046,0.00392162,2939.5,2938.1,2.44262831]
[1769152030254,0.00392162,2939.5,2938.2,0.14084687]
[1769152030457,0.31675906,2940.4,2938.4,0.14084687]
[1769152030751,1.51675906,2940.4,2938.4,0.14084687]
[1769152031446,1.5210859,2940.4,2938.4,0.14084687]
[1769152032855,0.3210859,2940.4,2938.4,0.14084687]
[1769152033948,0.1414085,2939.5,2938.1,0.00262831]
[1769152034151,0.1414085,2939.1,2937.3,0.14084687]
[1769152034348,0.0094274,2940.4,2936.2,14.03758602]
[1769152034349,0.1414085,2938.7,2936.8,0.14084687]
[1769152034548,0.17038,2938.3,2936.8,0.14084687]
[1769152034955,0.17038,2938.3,2936.8,2.57784687]
[1769152034956,0.00510056,2938.0,2936.8,2.57784687]
[1769152035147,0.00873022,2938.0,2936.8,2.58149493]
[1769152035854,0.00873022,2938.0,2936.8,0.14449493]
[1769152036057,0.00873022,2938.0,2936.9,2.438]
[1769152036252,0.00873022,2938.0,2936.9,2.437]
[1769152037249,0.00873022,2938.0,2936.8,0.00364806]
[1769152037454,0.00873022,2938.0,2936.9,2.132]
[1769152037956,0.00873022,2938.0,2936.8,0.00364806]
[1769152038160,0.00873022,2938.0,2936.8,1.89564806]
[1769152040157,0.15013872,2938.0,2936.8,0.00364806]
[1769152040358,0.15013872,2938.0,2936.2,0.14084687]
[1769152040359,0.1414085,2937.6,2935.8,0.14084687]
[1769152040553,0.17044,2937.2,2935.8,0.14084687]
[1769152041355,0.17045,2937.0,2935.8,0.00376524]
[1769152041661,0.17046,2936.9,2935.8,0.00376524]
[1769152041859,0.17046,2936.8,2935.8,0.00376524]
[1769152042860,0.1414085,2937.7,2935.8,0.14461211]
[1769152043258,0.17042,2937.6,2936.7,0.04575137]
[1769152043851,0.17042,2937.6,2937.1,0.046696]
[1769152044848,0.17042,2937.6,2937.3,0.046696]
[1769152045254,0.00873022,2938.0,2937.3,0.046696]
[1769152045858,0.00873022,2938.0,2937.6,0.046696]
[1769152046753,0.00873022,2938.0,2936.7,0.14084687]
[1769152047059,0.00873022,2938.0,2937.8,0.046696]
[1769152047854,0.00873022,2938.0,2936.7,0.14084687]
[1769152048254,0.17038,2938.3,2936.7,0.14084687]
[1769152048456,0.17038,2938.3,2937.2,0.14084687]
[1769152048964,0.17043,2937.3,2935.8,2.58261211]
[1769152049260,0.17045,2937.0,2935.8,0.14461211]
[1769152050257,0.00510056,2936.7,2935.9,2.443]
[1769152050457,0.00510056,2936.7,2935.8,2.58761211]
[1769152051762,0.17045,2937.0,2935.8,2.58761211]
[1769152052065,0.17045,2937.0,2935.9,0.14598215]
[1769152053963,0.17045,2937.0,2936.0,2.44]
[1769152054867,0.17045,2937.0,2936.5,0.04529835]
[1769152055559,0.00404758,2937.3,2936.5,0.04529835]
[1769152055959,0.00404758,2937.3,2936.9,0.04529835]
[1769152056159,0.00404758,2937.3,2936.4,2.438]
[1769152057257,0.00404758,2937.3,2935.8,0.00376524]
[1769152057561,0.00404758,2937.3,2935.9,2.03898215]
[1769152057864,0.00404758,2937.3,2936.0,2.436]
[1769152059071,0.00404758,2937.3,2936.1,0.14598215]
[1769152060567,0.00404758,2937.3,2936.7,0.04529635]
[1769152061663,0.00404758,2937.3,2937.0,0.04529635]
[1769152062362,0.15071877,2938.2,2937.0,0.04529635]
[1769152062563,0.17039,2938.1,2936.4,0.14598215]
[1769152063367,0.1747436,2938.1,2936.4,0.14598215]
[1769152064072,0.17039,2938.0,2936.4,0.14598215]
[1769152064369,0.17039,2938.0,2936.5,2.437]
[1769152064564,0.17039,2938.0,2936.5,2.58298215]
[1769152064764,0.17039,2938.0,2936.6,0.14598215]
[1769152066268,0.17039,2938.0,2937.3,0.0453027]
[1769152066565,0.15071877,2938.6,2937.3,0.0453027]
[1769152066566,0.32107877,2938.6,2937.3,0.0453027]
[1769152067468,0.17375222,2938.6,2937.9,0.0453027]
[1769152067664,0.17375222,2938.6,2937.9,0.04967839]
[1769152067870,0.17375222,2938.6,2937.9,2.48667839]
[1769152068068,0.00339222,2938.6,2937.9,2.48667839]
[1769152068264,0.15071877,2939.1,2937.9,2.48667839]
[1769152068265,0.15071877,2939.1,2938.2,0.0453027]
[1769152068564,0.15071877,2939.5,2938.2,0.0453027]
[1769152068771,0.15071877,2940.0,2938.2,0.0453027]
[1769152069265,0.15487462,2940.0,2938.6,0.00510056]
[1769152069470,0.15487462,2940.0,2939.1,0.0453027]
[1769152070466,0.15487462,2940.0,2939.5,0.0453027]
[1769152070973,0.15487462,2940.0,2938.6,0.00510056]
[1769152071367,0.15487462,2940.0,2938.7,2.432]
[1769152073671,0.15487462,2940.0,2938.6,0.00510056]
[1769152073972,0.15487462,2940.0,2938.7,2.162]
[1769152075374,0.15071877,2939.9,2938.6,0.00510056]
[1769152075571,0.15071877,2939.9,2938.7,2.426]
[1769152077682,0.15071877,2939.9,2938.6,2.42910056]
[1769152077875,0.15071877,2939.6,2938.6,0.00510056]
[1769152078178,0.32101877,2939.6,2938.6,0.00510056]
[1769152080174,0.15071877,2939.5,2938.6,0.00510056]
[1769152081174,0.1703,2939.6,2938.6,0.00510056]
[1769152084183,0.15071877,2939.9,2938.6,0.00510056]
[1769152087582,0.15071877,2939.9,2938.7,2.415]
[1769152088981,0.00415585,2940.0,2938.7,2.415]
[1769152092881,0.00415585,2940.0,2938.6,0.00510056]
[1769152093084,0.15104101,2940.0,2938.7,2.415]
[1769152093386,0.15104101,2940.0,2938.6,0.00510056]
[1769152093591,0.15104101,2940.0,2938.7,2.416]
[1769152094092,0.15104101,2940.0,2938.8,2.416]
[1769152094391,0.15104101,2940.0,2938.9,2.416]
[1769152095993,0.15104101,2940.0,2939.0,2.416]
[1769152096189,0.15104101,2940.0,2938.6,0.00510056]
[1769152096497,0.15104101,2940.0,2938.7,2.416]
[1769152098899,0.15104101,2940.0,2938.8,2.415]
[1769152099796,0.15104101,2940.0,2938.6,0.00510056]
[1769152099797,0.14688516,2939.5,2938.6,0.00510056]
[1769152100402,0.14688516,2939.9,2938.6,0.00510056]
[1769152102509,0.14688516,2939.9,2938.7,2.415]
[1769152102806,0.17028,2939.9,2938.7,2.415]
[1769152103003,0.14688516,2939.7,2938.6,0.00510056]
[1769152103907,0.00415585,2940.0,2938.6,0.00510056]
[1769152103908,0.14688516,2939.5,2938.6,0.00510056]
[1769152104102,0.14688516,2939.3,2938.6,0.00510056]
[1769152104304,0.14688516,2939.3,2938.1,2.416]
[1769152104507,0.15198572,2939.3,2938.1,2.416]
[1769152104902,0.15198572,2939.3,2937.9,0.00437569]
[1769152105207,0.14688516,2938.9,2937.9,0.00437569]
[1769152105395,0.14688516,2938.9,2937.3,6.10329827]
[1769152105603,0.14688516,2938.6,2937.4,2.417]
[1769152105802,0.14688516,2939.0,2937.4,2.417]
[1769152106197,0.14688516,2939.0,2936.9,7.11062052]
[1769152106402,0.14688516,2939.0,2937.0,2.419]
[1769152106708,0.14688516,2939.0,2937.1,0.12285903]
[1769152109715,0.00510056,2939.3,2937.1,0.12285903]
[1769152110311,0.00510056,2939.3,2937.1,6.2261573]
[1769152110515,0.00510056,2939.3,2937.3,0.13045418]
[1769152113713,0.146962,2939.3,2937.3,0.13045418]
[1769152114415,0.14186144,2939.7,2938.1,0.130928]
[1769152114616,0.00415585,2940.0,2938.3,0.130928]
[1769152119124,0.00415585,2940.0,2938.5,0.13203968]
[1769152119324,0.14186144,2940.6,2938.5,0.13203968]
[1769152120429,0.14446118,2940.6,2938.5,0.13203968]
[1769152120825,0.14446118,2940.6,2938.6,2.462]
[1769152121529,0.14446118,2940.6,2938.7,0.12835652]
[1769152124927,0.14446118,2940.6,2938.8,0.12902436]
[1769152125627,0.14446118,2940.6,2938.9,1.46445278]
[1769152125825,0.00259974,2940.6,2939.0,0.12902436]
[1769152126029,0.00259974,2940.6,2939.0,0.13207643]
[1769152126831,0.00259974,2940.6,2939.1,0.12890136]
[1769152128530,0.14446118,2940.6,2939.0,0.00305207]
[1769152128731,0.14446118,2940.6,2939.1,2.484]
[1769152130136,0.14446118,2940.6,2939.2,2.486]
[1769152131039,0.14446118,2940.6,2939.2,6.326]
[1769152131637,0.14446118,2940.6,2939.2,2.486]
[1769152132139,0.14446118,2940.6,2939.1,3.84]
[1769152132438,0.14446118,2940.6,2939.3,2.488]
[1769152134541,0.14446118,2940.6,2939.4,2.487]
[1769152134743,0.14186144,2940.1,2939.1,3.84]
[1769152134932,0.14186144,2940.1,2939.2,2.488]
[1769152135134,0.14186144,2940.1,2939.1,3.84]
[1769152135336,0.14186144,2940.1,2939.2,2.489]
[1769152135642,0.00510056,2940.2,2939.0,0.00305207]
[1769152135836,0.00510056,2940.2,2939.0,1.892]
[1769152136053,0.00510056,2940.2,2939.0,1.87399932]
[1769152136630,0.01165691,2940.2,2938.3,0.15162208]
[1769152136937,0.17684635,2940.0,2938.4,2.488]
[1769152137531,0.17684635,2940.0,2938.3,0.15491253]
[1769152137532,0.1703,2939.9,2938.3,0.15491253]
[1769152137738,0.1703,2939.9,2938.4,2.487]
[1769152139640,0.1703,2939.9,2938.4,2.484]
[1769152140341,0.17031,2939.8,2938.4,2.484]
[1769152142246,0.17032,2939.6,2938.4,2.484]
[1769152142647,0.17033,2939.4,2938.3,0.15491253]
[1769152142945,0.17033,2939.4,2938.4,2.48]
[1769152144346,0.17034,2939.3,2938.4,2.48]
[1769152144546,0.17035,2939.1,2938.3,0.15491253]
[1769152144847,0.17035,2939.1,2938.3,2.63391253]
[1769152145347,0.17035,2939.0,2938.3,0.00329045]
[1769152146446,0.17036,2938.9,2938.3,0.00329045]
[1769152148142,0.17036,2938.9,2937.9,0.16496689]
[1769152148945,0.00510056,2938.7,2937.9,0.16496689]
[1769152149143,0.00510056,2938.7,2937.9,0.16936154]
[1769152153563,0.00510056,2938.7,2938.1,0.16565121]
[1769152154755,0.10793468,2938.9,2938.1,0.16565121]
[1769152154963,0.17031,2939.8,2938.1,0.16565121]
[1769152155154,0.17031,2939.7,2938.1,0.16565121]
[1769152156065,0.17031,2939.7,2938.6,0.15127243]
[1769152156867,0.17027,2940.5,2938.6,0.15127243]
[1769152157164,0.17027,2940.4,2938.6,0.15127243]
[1769152158268,0.17027,2940.4,2938.8,0.14617187]
[1769152158967,0.00259974,2940.6,2938.8,0.14617187]
[1769152163269,0.00259974,2940.6,2939.0,0.14617187]
[1769152164366,0.00259974,2940.6,2939.2,0.14617187]
[1769152164567,0.17285974,2940.6,2939.2,0.14617187]
[1769152164766,0.17285974,2940.6,2939.2,2.61017187]
[1769152164961,0.00259974,2940.6,2938.7,0.14617187]
[1769152165167,0.00259974,2940.6,2938.8,2.61117187]
[1769152165362,0.00259974,2940.6,2938.8,0.14617187]
[1769152165562,0.00259974,2940.6,2938.9,2.61017187]
[1769152165965,0.00259974,2940.6,2938.9,0.14617187]
[1769152166167,0.00259974,2940.6,2938.9,2.61017187]
[1769152166564,0.17028,2940.3,2938.9,2.61017187]
[1769152166877,0.17028,2940.3,2938.9,2.60817187]
[1769152167772,0.17028,2940.3,2939.0,0.14617187]
[1769152170274,0.17028,2940.2,2939.0,0.14617187]
[1769152172277,0.17029,2940.1,2939.0,0.14617187]
[1769152177877,0.17026,2940.5,2939.2,0.1412071]
[1769152181590,0.17026,2940.5,2939.4,0.1412071]
[1769152185088,0.00259974,2940.6,2939.4,0.1412071]
[1769152192692,0.00259974,2940.6,2939.5,2.47]
[1769152193494,0.17285974,2940.6,2939.0,0.1412071]
[1769152193691,0.17285974,2940.6,2939.1,2.471]
[1769152194397,0.17028,2940.3,2939.0,0.1412071]
[1769152194592,0.17029,2940.2,2939.0,2.472]
[1769152194987,0.90696616,2940.0,2939.0,2.472]
[1769152195393,0.90696616,2940.0,2938.9,2.472]
[1769152195587,0.90696616,2939.7,2938.6,0.14630766]
[1769152195792,0.90696616,2939.7,2938.6,0.00510056]
[1769152195993,0.90696616,2939.4,2938.6,0.00510056]
[1769152196996,0.17032,2939.5,2938.2,0.1412071]
[1769152198603,0.17033,2939.4,2938.2,0.1412071]
[1769152198802,0.17033,2939.4,2937.9,0.14560175]
[1769152199005,0.17033,2939.4,2938.0,2.47]
[1769152199303,0.17033,2939.4,2938.0,2.469]
[1769152199802,0.17033,2939.4,2938.4,0.00510056]
[1769152202108,0.17033,2939.4,2938.4,0.14428511]
[1769152203608,0.17033,2939.4,2938.4,2.61028511]
[1769152204204,0.17033,2939.4,2938.4,0.14428511]
[1769152204407,0.17033,2939.4,2938.4,2.61028511]
[1769152204702,0.17033,2939.4,2938.4,0.00510056]
[1769152207603,0.17033,2939.4,2938.4,0.14603912]
[1769152210008,6.59571403,2940.5,2938.4,0.14603912]
[1769152210009,0.17028,2940.2,2938.4,0.14603912]
[1769152210809,0.17029,2940.1,2938.4,0.14603912]
[1769152217406,0.17029,2940.1,2938.6,0.14093856]
[1769152218911,1.07722632,2940.1,2938.7,2.60293856]
[1769152219210,1.07722632,2940.1,2938.8,0.14093856]
[1769152221109,0.00259974,2940.6,2938.8,0.14093856]
[1769152225911,0.10153635,2940.6,2938.8,0.14093856]
[1769152226110,0.10153635,2940.6,2938.9,0.14093856]
[1769152227216,0.17028,2940.2,2938.9,0.14093856]
[1769152232012,0.00259974,2940.6,2938.9,0.14093856]
[1769152235822,0.00259974,2940.6,2938.9,9.63493856]
[1769152236323,0.00259974,2940.6,2939.0,0.14704307]
[1769152236522,0.00259974,2940.6,2939.1,0.14704307]
[1769152239416,0.00259974,2940.6,2939.2,0.14704307]
[1769152242328,0.00259974,2940.6,2939.3,0.14704307]
[1769152243120,0.00259974,2940.6,2939.9,0.14704307]
[1769152243324,0.00259974,2940.6,2940.0,2.65504307]
[1769152243518,0.00259974,2940.6,2940.0,2.65752929]
[1769152244228,0.00259974,2940.6,2940.0,2.66262985]
[1769152244528,0.00259974,2940.6,2940.1,2.511]
[1769152244729,0.90621095,2941.3,2940.1,2.65804307]
[1769152245724,0.90876326,2941.3,2940.1,0.14704307]
[1769152245934,0.90621095,2941.0,2940.0,0.00758678]
[1769152246134,0.90621095,2941.0,2940.2,2.511]
[1769152247629,1.07645095,2941.0,2940.2,2.511]
[1769152253026,0.17024,2941.0,2940.2,2.511]
[1769152257339,0.17024,2941.0,2940.3,0.14704307]
[1769152264949,0.17024,2941.0,2940.3,2.65504307]
[1769152265647,0.00255231,2941.3,2940.4,0.14548329]
[1769152269650,0.00255231,2941.3,2940.4,2.66248329]
[1769152273055,0.00255231,2941.3,2940.0,0.15307007]
[1769152273250,0.00255231,2941.3,2940.1,2.517]
[1769152273450,0.00255231,2941.3,2940.1,2.66248329]
[1769152274052,0.00255231,2941.3,2940.2,0.14548329]
[1769152284761,0.00255231,2941.3,2940.3,2.527]
[1769152285060,0.00255231,2941.3,2940.3,2.67248329]
[1769152286060,0.00255231,2941.3,2940.4,0.14548329]
[1769152287449,0.17017,2942.1,2940.4,0.14548329]
[1769152288558,0.17430295,2942.1,2940.4,0.14548329]
[1769152289864,0.17430295,2942.1,2940.5,0.14548329]
[1769152290757,0.17430295,2942.1,2940.4,6.10329827]
[1769152290758,0.17430295,2942.1,2940.7,1.05185897]
[1769152290954,0.17430295,2942.1,2940.8,0.14548329]
[1769152294957,0.00413295,2942.1,2940.8,0.14548329]
[1769152299961,0.17012,2943.1,2941.9,0.14994888]
[1769152300266,0.17012,2943.0,2942.0,2.557]
[1769152300466,0.17012,2943.0,2941.9,0.14994888]
[1769152300667,0.17012,2943.0,2942.2,0.00510056]
[1769152300966,0.17396596,2943.0,2942.2,0.00891988]
[1769152301269,0.45194012,2943.0,2942.2,0.00891988]
[1769152302464,0.17396596,2943.0,2942.2,0.00891988]
[1769152304765,0.17396596,2943.0,2942.2,0.15886876]
[1769152305070,0.00384596,2943.0,2942.2,0.15886876]
[1769152307568,0.00384596,2943.0,2942.2,0.00891988]
[1769152311272,0.00384596,2943.0,2942.2,0.00381932]
[1769152311476,0.17522056,2942.9,2942.2,9.88e-06]
[1769152313775,0.17522056,2942.9,2942.3,0.9051604]
[1769152314370,0.17522056,2942.9,2942.3,1.05510928]
[1769152314371,0.00510056,2942.9,2942.3,1.05510928]
[1769152315777,0.00510056,2942.9,2942.2,9.88e-06]
[1769152320176,0.00510056,2942.9,2942.2,0.90517028]
[1769152320780,0.00510056,2942.9,2942.2,1.05511916]
[1769152320985,0.00510056,2942.9,2942.3,0.14994888]
[1769152322982,0.17008,2943.8,2942.5,0.9051604]
[1769152323178,0.26826584,2943.6,2942.6,0.14250877]
[1769152323686,0.9051604,2943.1,2942.3,0.00510056]
[1769152323886,0.17012,2943.1,2942.2,9.88e-06]
[1769152324182,0.17012,2943.0,2942.2,9.88e-06]
[1769152325284,0.00510056,2942.9,2942.2,9.88e-06]
[1769152326383,0.00510056,2942.9,2942.2,0.13850253]
[1769152326688,0.26921397,2944.1,2942.9,1.04365305]
[1769152326992,0.17005,2944.2,2942.9,1.04365305]
[1769152327187,1.0752104,2944.2,2942.9,0.13849265]
[1769152327487,0.17365036,2944.2,2942.9,0.13849265]
[1769152327983,0.44005291,2944.2,2943.0,0.13849265]
[1769152328180,0.17365036,2944.2,2943.2,1.04365305]
[1769152328380,0.17365036,2944.2,2943.3,0.13849265]
[1769152329089,0.17365036,2944.2,2943.5,0.00510056]
[1769152330189,0.17365036,2944.2,2942.5,0.9051604]
[1769152330190,0.9051604,2943.7,2942.4,0.13849265]
[1769152330387,0.9051604,2943.7,2942.2,0.90517028]
[1769152330889,0.17007,2943.8,2942.5,1.04365305]
[1769152331588,1.0752304,2943.8,2942.5,1.04365305]
[1769152332288,0.51937632,2943.7,2942.2,0.90517028]
[1769152332490,0.34929632,2943.6,2942.5,0.9051604]
[1769152332683,0.17008,2943.7,2942.8,1.04365305]
[1769152332985,6.498,2944.0,2942.9,0.13849265]
[1769152336100,6.50310056,2944.1,2942.9,0.13849265]
[1769152337897,0.00510056,2944.1,2942.9,0.13849265]
[1769152339793,16.92701,2945.0,2943.3,0.13849265]
[1769152339998,0.34937852,2944.9,2943.3,0.13849265]
[1769152340298,0.17001,2944.9,2943.3,0.13849265]
[1769152340496,0.17001,2944.9,2943.4,0.13849265]
[1769152340698,0.17247128,2944.9,2943.4,0.13849265]
[1769152342894,0.17002,2944.8,2943.4,0.13849265]
[1769152343811,0.17002,2944.8,2942.0,5.654]
[1769152343812,0.1701,2943.4,2942.2,9.88e-06]
[1769152343995,0.09688072,2943.4,2942.2,9.88e-06]
[1769152344200,0.44595023,2943.3,2941.0,0.13849265]
[1769152344399,0.09688072,2943.3,2941.0,0.13849265]
[1769152344602,0.44594537,2943.2,2941.0,0.13849265]
[1769152344803,0.09688072,2943.2,2941.0,0.13849265]
[1769152344999,0.00510056,2942.4,2941.0,0.13849265]
[1769152345198,0.00776715,2942.4,2941.0,0.14118226]
[1769152349612,10.259,2943.3,2941.0,0.14118226]
[1769152349909,0.17008,2943.7,2941.5,0.13849265]
[1769152350610,0.17436857,2943.7,2941.5,0.13849265]
[1769152352410,0.17008,2943.6,2941.5,0.13849265]
[1769152355611,0.17008,2943.6,2941.7,0.14636458]
[1769152357314,0.17009,2943.5,2941.7,0.14636458]
[1769152358316,0.17009,2943.5,2941.8,0.14636458]
[1769152359919,0.09977845,2942.5,2941.4,5.6e-07]
[1769152360112,0.1702,2941.7,2940.4,0.14636458]
[1769152360411,0.1702,2941.7,2938.6,0.27929709]
[1769152360412,0.1702,2941.6,2940.0,0.14636458]
[1769152360816,0.4450755,2941.6,2940.0,0.14636458]
[1769152361014,0.44909502,2941.6,2940.0,0.14980141]
[1769152361316,0.00510056,2941.1,2940.0,0.14980141]
[1769152375534,0.17022,2941.3,2940.0,0.14980141]
[1769152377541,0.17022,2941.3,2940.5,0.14636458]
[1769152377733,0.00401952,2941.6,2940.5,0.14636458]
[1769152382945,0.00510056,2941.3,2940.5,0.14636458]
[1769152384546,0.00401952,2941.6,2940.5,0.14636458]
[1769152384742,10.42915,2942.4,2940.5,0.14636458]
[1769152384948,0.17015,2942.4,2940.6,0.14758673]
[1769152385743,0.17369945,2942.4,2940.6,0.14758673]
[1769152385942,0.00354945,2942.4,2940.6,0.14758673]
[1769152393544,0.00354945,2942.4,2940.8,0.13779054]
[1769152398542,0.17017,2942.2,2940.8,0.13779054]
[1769152399748,0.17017,2942.1,2940.8,0.13779054]
[1769152405159,0.00354945,2942.4,2940.8,0.13779054]
[1769152408868,0.17369945,2942.4,2940.8,0.13779054]
[1769152409070,0.17017,2942.1,2940.8,0.13779054]
[1769152410668,0.17017,2942.1,2940.5,3.97779054]
[1769152410866,0.17017,2942.1,2940.6,0.13779054]
[1769152414761,0.00354945,2942.4,2940.6,0.13779054]
[1769152414961,0.35325642,2942.3,2940.6,0.13779054]
[1769152415168,0.00354945,2942.4,2940.6,0.13779054]
[1769152415368,0.35297934,2942.3,2940.6,0.13779054]
[1769152415570,0.00354945,2942.4,2940.6,0.13779054]
[1769152416970,0.00354945,2942.4,2940.9,0.13875505]
[1769152417569,0.00354945,2942.4,2941.1,0.13875505]
[1769152417770,0.00354945,2942.4,2941.3,0.13875505]
[1769152422274,0.10355617,2943.8,2941.3,0.13875505]
[1769152422474,0.17009,2943.5,2941.3,0.13875505]
[1769152422674,0.35323944,2943.4,2941.3,0.13875505]
[1769152422874,0.35323944,2943.3,2941.3,0.13875505]
[1769152423073,0.35323944,2943.2,2942.1,0.14385561]
[1769152423282,0.00375065,2943.2,2942.1,0.14643179]
[1769152439893,0.90866943,2943.2,2942.1,0.14643179]
[1769152440087,0.00375065,2943.2,2942.1,0.14643179]
[1769152440685,0.00375065,2943.2,2942.4,0.13875505]
[1769152440988,0.00375065,2943.2,2942.7,0.13875505]
[1769152444786,0.00375065,2943.2,2942.3,1.05483553]
[1769152444986,0.00375065,2943.2,2942.4,0.13848292]
[1769152449796,0.90866943,2943.2,2942.1,0.14615966]
[1769152450094,0.00375065,2943.2,2942.1,0.14615966]
[1769152458708,0.00375065,2943.2,2942.3,0.13848292]
[1769152470716,0.17009,2943.5,2942.8,0.90491878]
[1769152470921,6.498,2943.8,2942.9,0.13848292]
[1769152471123,0.34774456,2943.7,2942.9,0.13848292]
[1769152471320,6.498,2943.8,2942.9,0.13848292]
[1769152471529,0.34765225,2943.7,2942.9,0.13848292]
[1769152471824,0.90491878,2943.8,2942.9,0.13848292]
[1769152472022,0.35204106,2943.7,2942.9,0.13848292]
[1769152472319,0.2835707,2943.7,2942.9,0.13848292]
[1769152475014,0.0043878,2943.7,2942.9,0.13848292]
[1769152477823,0.27988366,2943.7,2942.9,0.13848292]
[1769152478615,0.90491878,2943.6,2942.5,0.1457688]
[1769152484426,0.27988366,2943.7,2942.5,0.1457688]
[1769152489637,0.27988366,2943.7,2942.6,0.1457688]
[1769152500537,0.0043878,2943.7,2942.6,0.1457688]
[1769152500738,0.0043878,2943.7,2942.6,1.05027819]
[1769152500941,0.0043878,2943.7,2942.7,0.1457688]
[1769152501742,0.17003,2944.6,2942.7,0.1457688]
[1769152501941,0.17003,2944.6,2942.2,8.60429827]
[1769152501942,0.34314574,2944.4,2943.1,0.13974642]
[1769152502144,0.17003,2944.6,2943.1,0.13974642]
[1769152502342,0.34316277,2944.5,2943.1,0.13974642]
[1769152502644,0.44772965,2944.6,2943.1,0.13974642]
[1769152502845,0.34569102,2944.5,2943.1,0.13974642]
[1769152503045,0.00270436,2944.5,2943.1,0.13974642]
[1769152505244,0.00270436,2944.5,2943.3,0.13941692]
[1769152506049,0.00270436,2944.5,2943.6,0.00510056]
[1769152506344,0.00270436,2944.5,2942.9,0.13941692]
[1769152506546,0.00270436,2944.5,2942.9,2.63741692]
[1769152506755,0.00270436,2944.5,2943.0,0.13941692]
[1769152507046,0.17005,2944.3,2942.6,2.497]
[1769152507243,0.33962027,2944.2,2942.6,0.13941692]
[1769152507443,0.50959002,2944.1,2942.6,0.13941692]
[1769152507746,0.50959002,2944.0,2942.6,0.13941692]
[1769152507941,0.17006,2944.0,2942.6,0.13941692]
[1769152508347,0.33953014,2943.9,2942.6,0.13941692]
[1769152508549,0.17006,2944.0,2942.6,0.13941692]
[1769152509351,0.33953457,2943.9,2942.6,0.13941692]
[1769152509543,0.17006,2944.0,2942.6,0.13941692]
[1769152509739,0.33953341,2943.9,2942.6,0.13941692]
[1769152509949,0.17006,2944.0,2942.6,0.13941692]
[1769152510148,0.33951423,2943.9,2942.6,0.13941692]
[1769152510350,0.17006,2944.0,2942.6,0.13941692]
[1769152510540,0.3394908,2943.9,2942.6,0.13941692]
[1769152510744,0.17006,2944.0,2942.6,0.13941692]
[1769152511248,0.00270436,2944.5,2942.8,0.13941692]
[1769152511551,0.33944994,2944.4,2942.8,0.13941692]
[1769152511746,0.00270436,2944.5,2942.8,0.13941692]
[1769152511940,0.3394593,2944.4,2942.8,0.13941692]
[1769152512144,0.00270436,2944.5,2942.8,0.13941692]
[1769152515747,0.00270436,2944.5,2943.0,0.13941692]
[1769152520157,0.00270436,2944.5,2943.0,1.04392631]
[1769152520350,0.00270436,2944.5,2943.1,0.13941692]
[1769152522656,0.00270436,2944.5,2943.2,0.13941692]
[1769152522857,0.27875487,2944.9,2943.2,0.13941692]
[1769152523552,0.16999,2945.3,2943.2,0.13941692]
[1769152523853,0.16999,2945.3,2943.6,0.13941692]
[1769152523854,0.33917719,2945.2,2943.6,0.13941692]
[1769152524057,0.17415964,2945.3,2943.6,0.13941692]
[1769152525859,0.00416964,2945.3,2944.0,0.13941692]
[1769152526161,0.00416964,2945.3,2944.1,0.13941692]
[1769152535860,0.17,2945.1,2943.7,0.1414546]
[1769152540259,0.00416964,2945.3,2943.7,0.1414546]
[1769152547063,0.00416964,2945.3,2944.1,0.1414546]
[1769152552778,10.42893,2946.2,2944.5,0.1414546]
[1769152552980,1.39863652,2946.1,2944.7,0.1414546]
[1769152553277,0.33985633,2946.0,2944.7,0.1414546]
[1769152553477,0.33985633,2945.9,2944.7,0.1414546]
[1769152553681,0.33985633,2945.8,2944.7,0.1414546]
[1769152553877,0.00344859,2945.9,2944.7,0.1454283]
[1769152554073,0.33972023,2945.8,2944.7,0.1454283]
[1769152554276,0.00344859,2945.9,2944.7,0.1454283]
[1769152554581,0.33967682,2945.8,2944.7,0.1454283]
[1769152554782,0.00344859,2945.9,2944.7,0.1454283]
[1769152556280,0.27845055,2945.9,2944.7,0.1454283]
[1769152557987,0.00344859,2945.9,2944.8,0.1414546]
[1769152558186,0.00344859,2945.9,2945.1,0.1414546]
[1769152558683,0.00344859,2945.9,2945.0,0.00510056]
[1769152560286,0.90674663,2945.9,2945.0,0.00510056]
[1769152560886,0.00344859,2945.9,2945.0,0.00510056]
[1769152561788,0.90329804,2945.6,2944.7,0.0039737]
[1769152563291,0.90329804,2945.0,2943.8,0.14765815]
[1769152563987,0.90329804,2945.3,2943.9,0.14765815]
[1769152564189,0.90329804,2945.3,2943.9,0.15024917]
[1769152565986,0.90329804,2945.0,2943.9,0.00259102]
[1769152566887,0.90329804,2944.4,2943.1,0.14057118]
[1769152567796,0.00510056,2944.0,2943.1,0.14296788]
[1769152581712,0.00510056,2944.0,2943.4,0.14057118]
[1769152582011,0.17003,2944.6,2943.4,0.14057118]
[1769152583905,0.17003,2944.6,2943.7,0.14057118]
[1769152586213,7.40129804,2945.1,2943.7,0.14057118]
[1769152587417,0.90329804,2945.1,2943.7,0.14057118]
[1769152587809,0.90329804,2944.5,2943.3,0.14057118]
[1769152590514,1.07331804,2944.7,2943.3,0.14057118]
[1769152590710,0.17002,2944.7,2943.4,0.14057118]
[1769152590908,0.17002,2944.7,2943.7,0.14057118]
[1769152591107,12.53227804,2945.4,2943.9,1.04386922]
[1769152591310,0.33944201,2945.3,2943.9,1.04386922]
[1769152591613,0.33944201,2945.2,2943.9,1.04386922]
[1769152591816,2.27327804,2945.4,2943.9,1.04386922]
[1769152591817,1.07327804,2945.4,2944.0,0.14283314]
[1769152592010,0.33952055,2945.3,2944.0,0.14283314]
[1769152592210,0.33952055,2945.2,2944.0,0.14283314]
[1769152592412,1.07327804,2945.4,2944.0,0.14283314]
[1769152592612,0.33968119,2945.3,2944.0,0.14283314]
[1769152592816,0.33968119,2945.2,2944.0,0.14283314]
[1769152593014,1.07327804,2945.4,2944.0,0.14283314]
[1769152593216,0.33963376,2945.3,2944.0,0.14283314]
[1769152593412,0.33963376,2945.2,2944.0,0.14283314]
[1769152593610,1.07327804,2945.4,2944.0,0.14283314]
[1769152593812,0.33967491,2945.3,2944.0,0.14283314]
[1769152594013,1.07327804,2945.4,2944.0,0.14283314]
[1769152594313,0.33969184,2945.3,2944.0,0.14283314]
[1769152594516,0.33969184,2945.2,2944.0,0.14283314]
[1769152594719,0.90329804,2945.1,2944.0,0.14283314]
[1769152595615,0.90329804,2945.1,2943.7,0.14283314]
[1769152600921,0.90329804,2944.8,2943.3,1.04613118]
[1769152601121,0.90329804,2944.8,2943.3,3.50713118]
[1769152603321,0.90329804,2944.8,2943.3,1.04613118]
[1769152604422,0.90329804,2944.8,2943.4,0.14283314]
[1769152605623,0.90329804,2944.8,2943.8,0.00510056]
[1769152606023,0.90329804,2944.9,2943.8,0.00510056]
[1769152606224,0.17,2945.0,2943.8,0.00510056]